fUST/lending_fUST_20251003
["ID","MTS","AMOUNT","RATE_DAILY","PERIOD"]
[388898711,1759483839673,-570.52,0.00018033,2]
[388898712,1759483839683,-500.0,0.00018033,2]
[388898713,1759483839693,-681.34,0.00018033,2]
[388898714,1759483839703,-798.57,0.00018033,2]
[388898715,1759483839712,-500.0,0.00018033,2]
[388898716,1759483839721,-819.98,0.00018033,2]
[388898717,1759483839731,-500.0,0.00018033,2]
[388898718,1759483839740,-500.0,0.00018033,2]
[388898719,1759483839749,-2068.1,0.00018033,2]
[388898720,1759483839758,-1257.9,0.00018033,2]
[388898721,1759483839768,-1046.96,0.00018033,2]
[388898722,1759483839777,-500.0,0.00018033,2]
[388898723,1759483839787,-500.0,0.00018033,2]
[388898724,1759483839796,-500.0,0.00018033,2]
[388898725,1759483839805,-500.0,0.00018033,2]
[388898726,1759483839815,-500.0,0.00018033,2]
[388898727,1759483839824,-1922.23,0.00018033,2]
[388898728,1759483839833,-923.4,0.00018033,2]
[388898729,1759483839843,-500.0,0.00018033,2]
[388898730,1759483839853,-500.0,0.00018033,2]
[388898731,1759483839863,-1004.2954986,0.00018033,2]
[388898732,1759483839872,-151.0,0.00018033,2]
[388898733,1759483839882,-151.0,0.00018033,2]
[388898734,1759483839892,-619.43,0.00018033,2]
[388898735,1759483839902,-500.0,0.00018033,2]
[388898736,1759483839912,-4527.56,0.00018033,2]
[388898737,1759483839922,-500.0,0.00018033,2]
[388898738,1759483839931,-500.0,0.00018033,2]
[388898739,1759483839942,-3790.52,0.00018033,2]
[388898740,1759483839951,-1292.96,0.00018033,2]
[388898741,1759483839960,-161.072881,0.00018033,2]
[388898742,1759483839969,-151.0,0.00018033,2]
[388898743,1759483839978,-153.377234,0.00018033,2]
[388898744,1759483839990,-151.0,0.00018033,2]
[388898745,1759483839999,-877.2,0.00018033,2]
[388898746,1759483840009,-2126.32,0.00018033,2]
[388898747,1759483840019,-152.472705,0.00018033,2]
[388898748,1759483840029,-726.58,0.00018033,2]
[388898749,1759483840039,-1051.3,0.00018033,2]
[388898750,1759483840048,-554.92,0.00018033,2]
[388898751,1759483840058,-755.78,0.00018033,2]
[388898752,1759483840067,-523.44,0.00018033,2]
[388898753,1759483840078,-500.0,0.00018033,2]
[388898754,1759483840088,-500.0,0.00018033,2]
[388898755,1759483840102,-500.0,0.00018034,2]
[388898756,1759483840112,-500.0,0.00018034,2]
[388898757,1759483840122,-153.39683377,0.00018034,2]
[388898758,1759483840133,-797.51,0.00018034,2]
[388898759,1759483840143,-982.64,0.00018034,2]
[388898760,1759483840152,-500.0,0.00018034,2]
[388898761,1759483840163,-1181.73,0.00018034,2]
[388898762,1759483840173,-500.0,0.00018034,2]
[388898763,1759483840183,-151.0,0.00018034,2]
[388898764,1759483840193,-151.0,0.00018034,2]
[388898765,1759483840207,-151.0,0.00018034,2]
[388898766,1759483840217,-151.0,0.00018034,2]
[388898767,1759483840226,-500.0,0.00018034,2]
[388898768,1759483840236,-500.0,0.00018034,2]
[388898769,1759483840246,-500.0,0.00018034,2]
[388898770,1759483840255,-956.43,0.00018034,2]
[388898771,1759483840265,-500.0,0.00018034,2]
[388898772,1759483840275,-500.0,0.00018034,2]
[388898773,1759483840285,-578.12,0.00018034,2]
[388898774,1759483840295,-500.0,0.00018034,2]
[388898775,1759483840305,-2007.92,0.00018034,2]
[388898776,1759483840314,-500.0,0.00018034,2]
[388898777,1759483840324,-500.0,0.00018034,2]
[388898778,1759483840334,-209.53137029,0.00018034,2]
[388898779,1759483840343,-811.73,0.00018034,2]
[388898780,1759483840352,-500.0,0.00018034,2]
[388898781,1759483840361,-500.0,0.00018034,2]
[388898782,1759483840371,-771.31,0.00018034,2]
[388898783,1759483840380,-654.15,0.00018034,2]
[388898784,1759483840393,-500.0,0.00018034,2]
[388898785,1759483840403,-500.0,0.00018034,2]
[388898786,1759483840413,-500.0,0.00018034,2]
[388898787,1759483840422,-500.0,0.00018034,2]
[388898788,1759483840433,-500.0,0.00018034,2]
[388898789,1759483840443,-500.0,0.00018034,2]
[388898790,1759483840452,-500.0,0.00018034,2]
[388898791,1759483840462,-500.0,0.00018034,2]
[388898792,1759483840471,-151.0,0.00018034,2]
[388898793,1759483840481,-151.0,0.00018034,2]
[388898794,1759483840490,-626.24,0.00018034,2]
[388898795,1759483840500,-778.98,0.00018034,2]
[388898796,1759483840510,-500.0,0.00018034,2]
[388898797,1759483840520,-1884.49,0.00018034,2]
[388898798,1759483840530,-500.0,0.00018034,2]
[388898799,1759483840539,-500.0,0.00018034,2]
[388898800,1759483840549,-500.0,0.00018034,2]
[388898801,1759483840559,-804.69,0.00018034,2]
[388898802,1759483840568,-559.2,0.00018034,2]
[388898803,1759483840578,-151.0,0.00018034,2]
[388898804,1759483840587,-151.0,0.00018034,2]
[388898805,1759483840597,-500.0,0.00018034,2]
[388898806,1759483840607,-500.0,0.00018034,2]
[388898807,1759483840617,-500.0,0.00018034,2]
[388898808,1759483840627,-500.0,0.00018034,2]
[388898809,1759483840636,-500.0,0.00018034,2]
[388898810,1759483840646,-808.74,0.00018034,2]
[388898811,1759483840655,-500.0,0.00018034,2]
[388898812,1759483840665,-500.33570826,0.00018034,2]
[388898813,1759483840674,-500.0,0.00018034,2]
[388898814,1759483840684,-417.98695291,0.00018034,2]
[388898815,1759483840693,-500.0,0.00018034,2]
[388898816,1759483840703,-500.0,0.00018034,2]
[388898817,1759483840713,-500.0,0.00018034,2]
[388898818,1759483840723,-500.0,0.00018034,2]
[388898819,1759483840732,-151.0,0.00018034,2]
[388898820,1759483840749,-500.0,0.00018034,2]
[388898821,1759483840762,-500.0,0.00018034,2]
[388898822,1759483840772,-500.0,0.00018034,2]
[388898823,1759483840783,-500.0,0.00018034,2]
[388898824,1759483840794,-500.0,0.00018034,2]
[388898825,1759483840803,-500.0,0.00018034,2]
[388898826,1759483840813,-500.0,0.00018034,2]
[388898827,1759483840823,-500.0,0.00018034,2]
[388898828,1759483840833,-500.0,0.00018034,2]
[388898829,1759483840843,-500.0,0.00018034,2]
[388898830,1759483840857,-500.0,0.00018034,2]
[388898831,1759483840869,-500.0,0.00018034,2]
[388898832,1759483840879,-500.0,0.00018034,2]
[388898833,1759483840888,-500.0,0.00018034,2]
[388898834,1759483840898,-500.0,0.00018034,2]
[388898835,1759483840907,-151.0,0.00018034,2]
[388898836,1759483840918,-670.92,0.00018034,2]
[388898837,1759483840928,-500.0,0.00018034,2]
[388898838,1759483840938,-151.0,0.00018034,2]
[388898839,1759483840947,-551.48,0.00018034,2]
[388898840,1759483840957,-151.482115,0.00018034,2]
[388898841,1759483840967,-151.0,0.00018034,2]
[388898842,1759483840976,-151.0,0.00018034,2]
[388898843,1759483840986,-628.27,0.00018034,2]
[388898844,1759483840996,-658.19,0.00018034,2]
[388898845,1759483841005,-500.0,0.00018034,2]
[388898846,1759483841015,-152.457783,0.00018034,2]
[388898847,1759483841024,-500.0,0.00018034,2]
[388898848,1759483841034,-500.0,0.00018034,2]
[388898849,1759483841044,-151.0,0.00018034,2]
[388898850,1759483841055,-190.93221976,0.00018034,2]
[388898851,1759483841064,-1161.0,0.00018034,2]
[388898852,1759483841074,-1113.0,0.00018034,2]
[388898853,1759483841085,-500.0,0.00018035,2]
[388898854,1759483841099,-397.14027104,0.00018035,2]
[388898855,1759483841109,-792.63,0.00018035,2]
[388898856,1759483841118,-502.90243334,0.00018035,2]
[388898857,1759483841128,-500.0,0.00018035,2]
[388898858,1759483841139,-151.0,0.00018035,2]
[388898859,1759483841149,-152.659975,0.00018035,2]
[388898860,1759483841159,-151.0,0.00018035,2]
[388898861,1759483841170,-151.0,0.00018035,2]
[388898862,1759483841179,-152.575299,0.00018035,2]
[388898863,1759483841188,-151.0,0.00018035,2]
[388898864,1759483841198,-152.18991,0.00018035,2]
[388898865,1759483841208,-151.0,0.00018035,2]
[388898866,1759483841218,-500.0,0.00018035,2]
[388898867,1759483841227,-511.42,0.00018035,2]
[388898868,1759483841237,-547.55,0.00018035,2]
[388898869,1759483841246,-288.10037321,0.00018035,2]
[388898870,1759483841269,-787.93962679,0.00018035,2]
[388898871,1759483841278,-151.470605,0.00018035,2]
[388898872,1759483841287,-500.0,0.00018035,2]
[388898873,1759483841297,-160.071586,0.00018035,2]
[388898874,1759483841307,-151.0,0.00018035,2]
[388898875,1759483841316,-500.0,0.00018037,2]
[388898876,1759483841325,-151.4071195,0.00018037,2]
[388898877,1759483842025,168.0,0.00017533,2]
[388898901,1759483842873,-571.34,0.00018031,2]
[388898904,1759483842883,-219.74444776,0.00018034,2]
[388898905,1759483842893,-348.5928805,0.00018037,2]
[388898907,1759483842903,-500.0,0.00018037,2]
[388898910,1759483842912,-339.31,0.00018037,2]
[388898911,1759483842922,-500.0,0.0001804,2]
[388898913,1759483842931,-250.0,0.00018051,2]
[388898915,1759483842940,-862.05,0.00018061,3]
[388898917,1759483842950,-1014.65161426,0.00018071,2]
[388898920,1759483842961,-168.0,0.00018092,2]
[388898922,1759483842970,-151.0,0.000181,2]
[388898924,1759483842980,-151.0,0.000181,2]
[388898926,1759483842989,-500.0,0.000181,2]
[388898928,1759483842999,-151.0,0.0001811,2]
[388898930,1759483843008,-980.0,0.0001811,2]
[388898932,1759483843018,-1002.19621997,0.0001811,2]
[388899000,1759483845811,-554.03,0.00018033,2]
[388899002,1759483845820,-1154.80378003,0.0001811,2]
[388899004,1759483845830,-630.0,0.0001811,2]
[388899006,1759483845840,-152.241499,0.0001811,2]
[388899008,1759483845849,-410.0,0.0001811,2]
[388899010,1759483845859,-150.0,0.00018111,2]
[388899012,1759483845868,-1154.45515193,0.00018113,2]
[388899014,1759483845878,-168.0,0.00018128,2]
[388899016,1759483845887,-1014.65161426,0.0001814,2]
[388899018,1759483845896,-1158.0,0.00018165,2]
[388899020,1759483845905,-151.0,0.000182,2]
[388899022,1759483845914,-151.0,0.000182,2]
[388899024,1759483845923,-151.0,0.00018206,2]
[388899026,1759483845932,-3643.2246561,0.00018206,2]
[388899028,1759483845944,-6604.31943086,0.00018206,2]
[388899031,1759483845953,-154.177519,0.00018208,2]
[388899032,1759483845962,-1014.65161426,0.00018209,2]
[388899035,1759483845973,-10000.0,0.00018209,2]
[388899037,1759483845983,-535.0,0.00018222,2]
[388899038,1759483845991,-151.0,0.00018224,2]
[388899041,1759483846001,-151.0,0.00018273,2]
[388899043,1759483846011,-4982.0,0.00018273,2]
[388899045,1759483846020,-431.03,0.00018295,3]
[388899047,1759483846029,-168.0,0.00018299,2]
[388899049,1759483846039,-151.0,0.000183,2]
[388899051,1759483846048,-151.0,0.000183,2]
[388899053,1759483846057,-151.0,0.000183,2]
[388899055,1759483846066,-151.0,0.000183,2]
[388899057,1759483846075,-500.0,0.00018305,2]
[388899059,1759483846085,-406.71734129,0.00018305,2]
[388899061,1759483846098,-500.0,0.00018305,2]
[388899063,1759483846108,-500.0,0.00018305,2]
[388899065,1759483846116,-500.0,0.00018305,2]
[388899067,1759483846127,-3737.79,0.00018305,2]
[388899069,1759483846136,-968.92,0.00018305,2]
[388899071,1759483846145,-500.0,0.00018305,2]
[388899073,1759483846154,-500.0,0.00018305,2]
[388899075,1759483846163,-500.0,0.00018305,2]
[388899076,1759483846172,-727.29,0.00018305,2]
[388899077,1759483846182,-500.0,0.00018305,2]
[388899078,1759483846191,-619.22,0.00018305,2]
[388899079,1759483846201,-500.0,0.00018305,2]
[388899080,1759483846210,-1450.43,0.00018305,2]
[388899081,1759483846220,-637.41,0.00018305,2]
[388899083,1759483846229,-1340.86,0.00018305,2]
[388899085,1759483846238,-970.78,0.00018305,2]
[388899087,1759483846247,-725.13,0.00018305,2]
[388899089,1759483846256,-500.0,0.00018305,2]
[388899091,1759483846265,-151.0,0.00018305,2]
[388899093,1759483846275,-500.0,0.00018305,2]
[388899095,1759483846284,-730.4,0.00018305,2]
[388899096,1759483846294,-759.54,0.00018305,2]
[388899097,1759483846303,-901.73,0.00018305,2]
[388899098,1759483846312,-1345.69,0.00018305,2]
[388899099,1759483846321,-151.0,0.00018305,2]
[388899100,1759483846331,-151.0,0.00018305,2]
[388899101,1759483846341,-612.45,0.00018305,2]
[388899102,1759483846350,-500.0,0.00018305,2]
[388899103,1759483846359,-500.0,0.00018305,2]
[388899104,1759483846368,-500.0,0.00018305,2]
[388899105,1759483846377,-1053.54,0.00018305,2]
[388899106,1759483846387,-500.0,0.00018305,2]
[388899107,1759483846396,-500.0,0.00018305,2]
[388899108,1759483846405,-1698.0,0.00018305,2]
[388899109,1759483846414,-2314.98,0.00018305,2]
[388899110,1759483846423,-2232.7,0.00018305,2]
[388899111,1759483846434,-1135.46,0.00018305,2]
[388899112,1759483846444,-500.0,0.00018305,2]
[388899113,1759483846454,-500.0,0.00018305,2]
[388899114,1759483846462,-2439.34,0.00018305,2]
[388899115,1759483846471,-571.34,0.00018305,2]
[388899116,1759483846480,-500.0,0.00018306,2]
[388899117,1759483846489,-481.80933426,0.00018306,2]
[388899118,1759483846498,-500.0,0.00018306,2]
[388899119,1759483846507,-500.0,0.00018306,2]
[388899120,1759483846518,-500.0,0.00018306,2]
[388899121,1759483846527,-268.12,0.00018306,2]
[388899122,1759483846536,-500.0,0.00018306,2]
[388899123,1759483846545,-500.0,0.00018306,2]
[388899124,1759483846554,-500.0,0.00018306,2]
[388899125,1759483846563,-500.0,0.00018306,2]
[388899126,1759483846572,-500.0,0.00018306,2]
[388899127,1759483846582,-500.0,0.00018306,2]
[388899128,1759483846592,-500.0,0.00018306,2]
[388899129,1759483846601,-574.91,0.00018306,2]
[388899130,1759483846610,-500.0,0.00018306,2]
[388899131,1759483846619,-500.0,0.00018306,2]
[388899132,1759483846629,-500.0,0.00018306,2]
[388899133,1759483846638,-500.0,0.00018306,2]
[388899134,1759483846647,-438.91248419,0.00018306,2]
[388899135,1759483846656,-500.0,0.00018306,2]
[388899136,1759483846666,-500.0,0.00018306,2]
[388899137,1759483846675,-500.0,0.00018306,2]
[388899138,1759483846684,-500.0,0.00018306,2]
[388899139,1759483846695,-500.0,0.00018306,2]
[388899140,1759483846705,-500.0,0.00018306,2]
[388899141,1759483846714,-500.0,0.00018306,2]
[388899142,1759483846723,-500.0,0.00018306,2]
[388899143,1759483846732,-701.59,0.00018306,2]
[388899144,1759483846742,-550.64,0.00018306,2]
[388899145,1759483846751,-500.0,0.00018306,2]
[388899146,1759483846760,-1905.05,0.00018306,2]
[388899147,1759483846770,-500.0,0.00018306,2]
[388899148,1759483846779,-450.00781313,0.00018306,2]
[388899149,1759483846788,-500.0,0.00018306,2]
[388899150,1759483846798,-536.25413787,0.00018306,2]
[388899151,1759483846807,-958.13,0.00018306,2]
[388899152,1759483846816,-500.0,0.00018306,2]
[388899153,1759483846826,-500.0,0.00018306,2]
[388899154,1759483846835,-1950.34,0.00018306,2]
[388899155,1759483846844,-500.0,0.00018306,2]
[388899156,1759483846854,-525.3,0.00018306,2]
[388899157,1759483846863,-500.0,0.00018306,2]
[388899158,1759483846872,-533.94,0.00018306,2]
[388899159,1759483846880,-500.0,0.00018306,2]
[388899160,1759483846890,-842.84,0.00018306,2]
[388899161,1759483846899,-500.0,0.00018306,2]
[388899162,1759483846909,-1496.09,0.00018306,2]
[388899163,1759483846919,-500.0,0.00018306,2]
[388899164,1759483846928,-500.0,0.00018306,2]
[388899165,1759483846937,-1800.35,0.00018306,2]
[388899166,1759483846946,-500.0,0.00018306,2]
[388899167,1759483846956,-500.0,0.00018306,2]
[388899168,1759483846965,-500.0,0.00018306,2]
[388899169,1759483846974,-500.0,0.00018306,2]
[388899170,1759483846983,-500.0,0.00018306,2]
[388899171,1759483846992,-500.0,0.00018306,2]
[388899172,1759483847002,-500.0,0.00018306,2]
[388899173,1759483847011,-190.8,0.00018306,2]
[388899174,1759483847022,-966.87,0.00018306,2]
[388899175,1759483847032,-215.27793585,0.00018306,2]
[388899176,1759483847041,-500.0,0.00018306,2]
[388899177,1759483847052,-584.33,0.00018306,2]
[388899178,1759483847063,-614.85,0.00018306,2]
[388899179,1759483847073,-793.56,0.00018306,2]
[388899180,1759483847083,-500.0,0.00018306,2]
[388899181,1759483847096,-500.0,0.00018306,2]
[388899182,1759483847106,-773.83,0.00018306,2]
[388899183,1759483847117,-500.0,0.00018306,2]
[388899184,1759483847127,-841.36,0.00018306,2]
[388899185,1759483847138,-904.9,0.00018306,2]
[388899186,1759483847148,-500.0,0.00018306,2]
[388899187,1759483847158,-500.0,0.00018306,2]
[388899188,1759483847168,-500.0,0.00018306,2]
[388899189,1759483847178,-577.43,0.00018306,2]
[388899190,1759483847188,-500.0,0.00018306,2]
[388899191,1759483847197,-642.94,0.00018306,2]
[388899192,1759483847206,-1337.0,0.00018306,2]
[388899193,1759483847217,-500.0,0.00018306,2]
[388899194,1759483847227,-4365.5,0.00018306,2]
[388899195,1759483847236,-8133.07,0.00018306,2]
[388899196,1759483847246,-500.0,0.00018306,2]
[388899197,1759483847256,-1093.48,0.00018306,2]
[388899198,1759483847266,-500.0,0.00018306,2]
[388899199,1759483847276,-579.05,0.00018306,2]
[388899200,1759483847286,-2286.71,0.00018306,2]
[388899201,1759483847296,-562.08293719,0.00018306,2]
[388899202,1759483847305,-500.17,0.00018306,2]
[388899203,1759483847315,-2306.58,0.00018306,2]
[388899204,1759483847327,-500.0,0.00018306,2]
[388899205,1759483847336,-621.48,0.00018306,2]
[388899206,1759483847348,-500.0,0.00018306,2]
[388899207,1759483847359,-500.0,0.00018306,2]
[388899208,1759483847368,-500.0,0.00018306,2]
[388899209,1759483847378,-3857.38,0.00018306,2]
[388899210,1759483847388,-500.0,0.00018306,2]
[388899211,1759483847398,-658.65,0.00018306,2]
[388899212,1759483847407,-424.68308542,0.00018306,2]
[388899213,1759483847416,-576.02,0.00018306,2]
[388899214,1759483847426,-871.1,0.00018306,2]
[388899215,1759483847436,-532.11,0.00018306,2]
[388899216,1759483847445,-1044.67,0.00018306,2]
[388899217,1759483847453,-667.91,0.00018306,2]
[388899218,1759483847462,-500.0,0.00018306,2]
[388899219,1759483847471,-500.0,0.00018306,2]
[388899220,1759483847481,-500.0,0.00018306,2]
[388899221,1759483847490,-247.58017517,0.00018306,2]
[388899222,1759483847499,-500.0,0.00018306,2]
[388899223,1759483847509,-625.12,0.00018306,2]
[388899224,1759483847519,-532.7,0.00018306,2]
[388899225,1759483847530,-2467.86,0.00018306,2]
[388899226,1759483847541,-878.43,0.00018306,2]
[388899227,1759483847552,-1279.15,0.00018306,2]
[388899228,1759483847563,-1368.62,0.00018306,2]
[388899229,1759483847572,-942.03,0.00018306,2]
[388899230,1759483847582,-1195.32,0.00018306,2]
[388899231,1759483847592,-500.0,0.00018306,2]
[388899232,1759483847602,-1106.32,0.00018306,2]
[388899233,1759483847611,-832.82,0.00018306,2]
[388899234,1759483847621,-619.84,0.00018306,2]
[388899235,1759483847631,-2043.45,0.00018306,2]
[388899236,1759483847641,-500.0,0.00018306,2]
[388899237,1759483847652,-151.0,0.00018306,2]
[388899238,1759483847661,-151.0,0.00018306,2]
[388899239,1759483847671,-750.82,0.00018306,2]
[388899240,1759483847681,-979.83,0.00018306,2]
[388899241,1759483847691,-654.16,0.00018306,2]
[388899242,1759483847701,-1271.09,0.00018306,2]
[388899243,1759483847711,-500.0,0.00018306,2]
[388899244,1759483847720,-706.2,0.00018306,2]
[388899245,1759483847730,-572.72,0.00018306,2]
[388899246,1759483847740,-500.0,0.00018306,2]
[388899247,1759483847749,-862.7,0.00018306,2]
[388899248,1759483847760,-500.0,0.00018306,2]
[388899249,1759483847769,-500.0,0.00018306,2]
[388899250,1759483847779,-721.92,0.00018306,2]
[388899251,1759483847789,-587.77,0.00018306,2]
[388899252,1759483847800,-1557.36,0.00018306,2]
[388899253,1759483847809,-500.0,0.00018306,2]
[388899254,1759483847819,-458.71841444,0.00018306,2]
[388899255,1759483847829,-1606.75,0.00018306,2]
[388899256,1759483847839,-500.0,0.00018306,2]
[388899257,1759483847849,-500.0,0.00018306,2]
[388899258,1759483847859,-151.0,0.00018306,2]
[388899259,1759483847869,-151.0,0.00018306,2]
[388899260,1759483847878,-1631.05,0.00018306,2]
[388899261,1759483847888,-3000.0,0.00018307,2]
[388899262,1759483847899,-500.0,0.00018307,2]
[388899263,1759483847909,-500.0,0.00018307,2]
[388899264,1759483847918,-547.25,0.00018307,2]
[388899265,1759483847928,-500.0,0.00018307,2]
[388899266,1759483847938,-500.0,0.00018307,2]
[388899267,1759483847948,-500.0,0.00018307,2]
[388899268,1759483847958,-500.0,0.00018307,2]
[388899269,1759483847968,-239.0,0.00018307,2]
[388899270,1759483847978,-500.0,0.00018307,2]
[388899271,1759483847988,-500.0,0.00018307,2]
[388899272,1759483847998,-500.0,0.00018307,2]
[388899273,1759483848008,-500.0,0.00018307,2]
[388899274,1759483848018,-500.0,0.00018307,2]
[388899275,1759483848027,-500.0,0.00018307,2]
[388899276,1759483848036,-500.0,0.00018307,2]
[388899277,1759483848046,-923.41,0.00018307,2]
[388899278,1759483848055,-500.0,0.00018307,2]
[388899279,1759483848066,-500.0,0.00018307,2]
[388899280,1759483848075,-1354.2,0.00018307,2]
[388899281,1759483848086,-1165.97,0.00018307,2]
[388899282,1759483848099,-500.0,0.00018307,2]
[388899283,1759483848109,-2710.59,0.00018307,2]
[388899284,1759483848118,-500.0,0.00018307,2]
[388899285,1759483848128,-500.0,0.00018307,2]
[388899286,1759483848137,-500.0,0.00018307,2]
[388899287,1759483848147,-520.0,0.00018307,3]
[388899288,1759483848156,-500.0,0.00018307,2]
[388899289,1759483848166,-500.0,0.00018307,2]
[388899290,1759483848176,-500.0,0.00018307,2]
[388899291,1759483848185,-558.94,0.00018307,2]
[388899292,1759483848195,-639.04,0.00018307,2]
[388899293,1759483848204,-500.0,0.00018307,2]
[388899294,1759483848214,-500.0,0.00018307,2]
[388899295,1759483848226,-500.0,0.00018307,2]
[388899296,1759483848235,-500.0,0.00018307,2]
[388899297,1759483848247,-500.0,0.00018307,2]
[388899298,1759483848257,-570.52,0.00018307,2]
[388899299,1759483848267,-500.0,0.00018307,2]
[388899300,1759483848276,-681.34,0.00018307,2]
[388899301,1759483848286,-798.57,0.00018307,2]
[388899302,1759483848297,-500.0,0.00018307,2]
[388899303,1759483848307,-819.98,0.00018307,2]
[388899304,1759483848317,-500.0,0.00018307,2]
[388899305,1759483848327,-500.0,0.00018307,2]
[388899306,1759483848337,-2068.1,0.00018307,2]
[388899307,1759483848347,-1257.9,0.00018307,2]
[388899308,1759483848356,-1046.96,0.00018307,2]
[388899309,1759483848366,-500.0,0.00018307,2]
[388899310,1759483848375,-500.0,0.00018307,2]
[388899311,1759483848385,-500.0,0.00018307,2]
[388899312,1759483848395,-500.0,0.00018307,2]
[388899313,1759483848405,-500.0,0.00018307,2]
[388899314,1759483848415,-1922.23,0.00018307,2]
[388899315,1759483848426,-923.4,0.00018307,2]
[388899316,1759483848436,-500.0,0.00018307,2]
[388899317,1759483848446,-500.0,0.00018307,2]
[388899318,1759483848455,-619.43,0.00018307,2]
[388899319,1759483848465,-500.0,0.00018307,2]
[388899320,1759483848475,-4527.56,0.00018307,2]
[388899321,1759483848484,-500.0,0.00018307,2]
[388899322,1759483848494,-3790.52,0.00018307,2]
[388899323,1759483848504,-1292.96,0.00018307,2]
[388899324,1759483848514,-877.2,0.00018307,2]
[388899325,1759483848524,-2126.32,0.00018307,2]
[388899326,1759483848533,-726.58,0.00018307,2]
[388899327,1759483848543,-1051.3,0.00018307,2]
[388899328,1759483848553,-554.92,0.00018307,2]
[388899329,1759483848563,-755.78,0.00018307,2]
[388899330,1759483848573,-523.44,0.00018307,2]
[388899331,1759483848583,-151.0,0.00018307,2]
[388899332,1759483848592,-500.0,0.00018307,2]
[388899333,1759483848602,-151.0,0.00018307,2]
[388899334,1759483848611,-554.03,0.00018307,2]
[388899335,1759483848621,-151.0,0.00018308,2]
[388899336,1759483848631,-151.0,0.00018308,2]
[388899337,1759483848641,-151.0,0.00018308,2]
[388899338,1759483848650,-500.0,0.00018308,2]
[388899339,1759483848660,-151.0,0.00018308,2]
[388899340,1759483848670,-151.0,0.00018308,2]
[388899341,1759483848679,-1161.0,0.00018308,2]
[388899342,1759483848689,-1113.0,0.00018308,2]
[388899343,1759483848698,-500.0,0.00018308,2]
[388899344,1759483848709,-500.0,0.00018308,2]
[388899345,1759483848719,-500.0,0.00018308,2]
[388899346,1759483848729,-500.0,0.00018308,2]
[388899347,1759483848739,-500.0,0.00018308,2]
[388899348,1759483848750,-500.0,0.00018308,2]
[388899349,1759483848759,-797.51,0.00018308,2]
[388899350,1759483848769,-982.64,0.00018308,2]
[388899351,1759483848779,-500.0,0.00018308,2]
[388899352,1759483848788,-1181.73,0.00018308,2]
[388899353,1759483848798,-312.32051616,0.00018308,2]
[388899354,1759483848808,-500.0,0.00018308,2]
[388899355,1759483848818,-500.0,0.00018308,2]
[388899356,1759483848828,-956.43,0.00018308,2]
[388899357,1759483848839,-500.0,0.00018308,2]
[388899358,1759483848848,-500.0,0.00018308,2]
[388899359,1759483848858,-2007.92,0.00018308,2]
[388899360,1759483848868,-500.0,0.00018308,2]
[388899361,1759483848878,-500.0,0.00018308,2]